[Event "Titled Tuesday Blitz April 11 Early 2023"]
[White "Pranesh M"]
[Black "Shubenkova, Veronika"]
[WhiteFideId "35028600"]
[BlackFideId "44124040"]
[WhiteElo "2437"]
[BlackElo "2027"]
[Result "1-0"]
[Round "01"]
[TimeControl "180+2"]
[Date "2023.04.11"]
[WhiteClock "0:01:14"]
[BlackClock "0:01:17"]

1. e4 {[%clk 0:02:56]}  e6 {[%clk 0:02:59]} 2. d4 {[%clk 0:02:56]}  d5 {[%clk 0:02:59]} 3. Nd2 {[%clk 0:02:55]}  Nf6 {[%clk 0:03:00]} 4. e5 {[%clk 0:02:54]}  Nfd7 {[%clk 0:02:59]} 5. Ngf3 {[%clk 0:02:55]}  c5 {[%clk 0:02:59]} 6. c3 {[%clk 0:02:54]}  Nc6 {[%clk 0:03:00]} 7. Bd3 {[%clk 0:02:54]}  Be7 {[%clk 0:02:59]} 8. O-O {[%clk 0:02:53]}  a6 {[%clk 0:02:59]} 9. a3 {[%clk 0:02:49]}  b5 {[%clk 0:02:59]} 10. b4 {[%clk 0:02:48]}  cxd4 {[%clk 0:02:57]} 11. cxd4 {[%clk 0:02:49]}  Qb6 {[%clk 0:02:58]} 12. Nb3 {[%clk 0:02:49]}  Qc7 {[%clk 0:02:53]} 13. Bf4 {[%clk 0:02:30]}  Nb6 {[%clk 0:02:01]} 14. Ne1 {[%clk 0:02:28]}  Bb7 {[%clk 0:02:01]} 15. Qg4 {[%clk 0:02:19]}  g6 {[%clk 0:02:01]} 16. Nf3 {[%clk 0:02:13]}  h5 {[%clk 0:01:59]} 17. Qg3 {[%clk 0:02:12]}  O-O-O {[%clk 0:01:58]} 18. Ng5 {[%clk 0:02:12]}  Bxg5 {[%clk 0:01:55]} 19. Bxg5 {[%clk 0:02:12]}  Rdf8 {[%clk 0:01:53]} 20. Nc5 {[%clk 0:02:08]}  Nxd4 {[%clk 0:01:50]} 21. Rfc1 {[%clk 0:01:57]}  Nc4 {[%clk 0:01:50]} 22. a4 {[%clk 0:01:46]}  h4 {[%clk 0:01:46]} 23. Qf4 {[%clk 0:01:28]}  Nf5 {[%clk 0:01:41]} 24. axb5 {[%clk 0:01:25]}  axb5 {[%clk 0:01:41]} 25. Ra7 {[%clk 0:01:24]}  h3 {[%clk 0:01:34]} 26. Rxb7 {[%clk 0:01:23]}  Qc6 {[%clk 0:01:33]} 27. Ra1 {[%clk 0:01:19]}  Qxb7 {[%clk 0:01:32]} 28. Nxb7 {[%clk 0:01:20]}  Kxb7 {[%clk 0:01:32]} 29. Bxf5 {[%clk 0:01:17]}  gxf5 {[%clk 0:01:31]} 30. Qd4 {[%clk 0:01:17]}  Ra8 {[%clk 0:01:30]} 31. Rxa8 {[%clk 0:01:17]}  Rxa8 {[%clk 0:01:29]} 32. gxh3 {[%clk 0:01:18]}  Ra2 {[%clk 0:01:27]} 33. h4 {[%clk 0:01:18]}  Re2 {[%clk 0:01:18]} 34. Qc5 {[%clk 0:01:15]}  Nxe5 {[%clk 0:01:17]} 35. Qxb5+ {[%clk 0:01:14]} 1-0


[Site "https://www.chess.com"]

[Event "Titled Tuesday Blitz April 11 Early 2023"]
[White "Erzhanov, Arman"]
[Black "Kravtsiv, Martyn"]
[WhiteFideId "4138821"]
[BlackFideId "14113147"]
[WhiteElo "2138"]
[BlackElo "2695"]
[Result "0-1"]
[Round "01"]
[TimeControl "180+2"]
[Date "2023.04.11"]
[WhiteClock "0:00:08"]
[BlackClock "0:00:09"]

1. e4 {[%clk 0:03:00]}  e5 {[%clk 0:02:58]} 2. Nf3 {[%clk 0:03:00]}  Nc6 {[%clk 0:02:58]} 3. Bb5 {[%clk 0:02:57]}  a6 {[%clk 0:02:57]} 4. Bxc6 {[%clk 0:02:56]}  dxc6 {[%clk 0:02:57]} 5. O-O {[%clk 0:02:56]}  Bg4 {[%clk 0:02:55]} 6. h3 {[%clk 0:02:55]}  h5 {[%clk 0:02:55]} 7. d3 {[%clk 0:02:55]}  Qf6 {[%clk 0:02:55]} 8. Be3 {[%clk 0:02:56]}  Bxf3 {[%clk 0:02:52]} 9. Qxf3 {[%clk 0:02:56]}  Qxf3 {[%clk 0:02:52]} 10. gxf3 {[%clk 0:02:57]}  f6 {[%clk 0:02:51]} 11. f4 {[%clk 0:02:55]}  exf4 {[%clk 0:02:40]} 12. Bxf4 {[%clk 0:02:55]}  Bd6 {[%clk 0:02:40]} 13. Be3 {[%clk 0:02:40]}  f5 {[%clk 0:02:25]} 14. f4 {[%clk 0:02:31]}  Kf7 {[%clk 0:02:00]} 15. Nd2 {[%clk 0:02:28]}  Re8 {[%clk 0:01:59]} 16. Nf3 {[%clk 0:02:25]}  Nh6 {[%clk 0:01:42]} 17. Rae1 {[%clk 0:02:20]}  Kg6 {[%clk 0:01:39]} 18. Nh4+ {[%clk 0:02:11]}  Kh7 {[%clk 0:01:34]} 19. Nf3 {[%clk 0:01:54]}  Rhf8 {[%clk 0:01:25]} 20. e5 {[%clk 0:01:53]}  Be7 {[%clk 0:01:24]} 21. Kf2 {[%clk 0:01:49]}  Nf7 {[%clk 0:01:23]} 22. Rg1 {[%clk 0:01:48]}  Nd8 {[%clk 0:01:23]} 23. d4 {[%clk 0:01:37]}  Ne6 {[%clk 0:01:21]} 24. c4 {[%clk 0:01:37]}  Rd8 {[%clk 0:01:06]} 25. Rd1 {[%clk 0:01:37]}  g5 {[%clk 0:01:05]} 26. fxg5 {[%clk 0:01:30]}  f4 {[%clk 0:01:04]} 27. Bc1 {[%clk 0:01:30]}  Nxd4 {[%clk 0:01:00]} 28. Nxd4 {[%clk 0:01:20]}  Bc5 {[%clk 0:00:59]} 29. Kf3 {[%clk 0:00:52]}  Bxd4 {[%clk 0:00:58]} 30. Rge1 {[%clk 0:00:50]}  c5 {[%clk 0:00:58]} 31. h4 {[%clk 0:00:49]}  Kg6 {[%clk 0:00:52]} 32. Re4 {[%clk 0:00:43]}  Rde8 {[%clk 0:00:48]} 33. Rde1 {[%clk 0:00:43]}  Re6 {[%clk 0:00:46]} 34. b3 {[%clk 0:00:42]}  a5 {[%clk 0:00:39]} 35. Bxf4 {[%clk 0:00:43]}  a4 {[%clk 0:00:34]} 36. Kg3 {[%clk 0:00:42]}  axb3 {[%clk 0:00:33]} 37. axb3 {[%clk 0:00:43]}  Ra8 {[%clk 0:00:32]} 38. R4e2 {[%clk 0:00:42]}  Ra3 {[%clk 0:00:31]} 39. Rb1 {[%clk 0:00:41]}  Kf5 {[%clk 0:00:30]} 40. Kf3 {[%clk 0:00:33]}  Rb6 {[%clk 0:00:27]} 41. e6 {[%clk 0:00:32]}  Rxe6 {[%clk 0:00:24]} 42. Rxe6 {[%clk 0:00:32]}  Kxe6 {[%clk 0:00:25]} 43. Ke4 {[%clk 0:00:31]}  Ra2 {[%clk 0:00:24]} 44. Re1 {[%clk 0:00:29]}  Rb2 {[%clk 0:00:22]} 45. Be3 {[%clk 0:00:22]}  Bc3 {[%clk 0:00:21]} 46. Rf1 {[%clk 0:00:17]}  b6 {[%clk 0:00:21]} 47. g6 {[%clk 0:00:17]}  Rxb3 {[%clk 0:00:20]} 48. Bh6 {[%clk 0:00:16]}  Rb2 {[%clk 0:00:18]} 49. Rg1 {[%clk 0:00:12]}  Rh2 {[%clk 0:00:18]} 50. g7 {[%clk 0:00:12]}  Rxh4+ {[%clk 0:00:18]} 51. Kd3 {[%clk 0:00:13]}  Bxg7 {[%clk 0:00:13]} 52. Rxg7 {[%clk 0:00:12]}  Rd4+ {[%clk 0:00:13]} 53. Kc3 {[%clk 0:00:12]}  Rd7 {[%clk 0:00:13]} 54. Rxd7 {[%clk 0:00:10]}  Kxd7 {[%clk 0:00:13]} 55. Bf4 {[%clk 0:00:11]}  h4 {[%clk 0:00:11]} 56. Kd3 {[%clk 0:00:10]}  c6 {[%clk 0:00:11]} 57. Ke4 {[%clk 0:00:08]}  b5 {[%clk 0:00:11]} 58. Be3 {[%clk 0:00:08]}  Kd6 {[%clk 0:00:10]} 59. Bf4+ {[%clk 0:00:07]}  Ke6 {[%clk 0:00:10]} 60. Be3 {[%clk 0:00:08]}  bxc4 {[%clk 0:00:07]} 61. Bxc5 {[%clk 0:00:08]}  h3 {[%clk 0:00:07]} 62. Bg1 {[%clk 0:00:07]}  c3 {[%clk 0:00:05]} 63. Kd3 {[%clk 0:00:07]}  Kd5 {[%clk 0:00:05]} 64. Kxc3 {[%clk 0:00:06]}  Ke4 {[%clk 0:00:06]} 65. Bh2 {[%clk 0:00:07]}  Kd5 {[%clk 0:00:05]} 66. Bg3 {[%clk 0:00:07]}  Kc5 {[%clk 0:00:05]} 67. Bh2 {[%clk 0:00:07]}  Kb5 {[%clk 0:00:06]} 68. Bg3 {[%clk 0:00:08]}  c5 {[%clk 0:00:06]} 69. Bh2 {[%clk 0:00:09]}  c4 {[%clk 0:00:06]} 70. Bg3 {[%clk 0:00:09]}  Kc5 {[%clk 0:00:07]} 71. Bh2 {[%clk 0:00:10]}  Kd5 {[%clk 0:00:07]} 72. Bg3 {[%clk 0:00:10]}  Ke4 {[%clk 0:00:08]} 73. Bh2 {[%clk 0:00:11]}  Kf3 {[%clk 0:00:08]} 74. Kxc4 {[%clk 0:00:11]}  Kg4 {[%clk 0:00:08]} 75. Bg1 {[%clk 0:00:09]}  Kg3 {[%clk 0:00:08]} 76. Kd3 {[%clk 0:00:09]}  Kg2 {[%clk 0:00:08]} 77. Bh2 {[%clk 0:00:08]}  Kxh2 {[%clk 0:00:08]} 78. Ke3 {[%clk 0:00:07]}  Kg2 {[%clk 0:00:09]} 79. Ke2 {[%clk 0:00:08]}  h2 {[%clk 0:00:10]} 80. Kd3 {[%clk 0:00:08]}  h1=Q {[%clk 0:00:09]} 0-1


[Site "https://www.chess.com"]

[Event "Titled Tuesday Blitz April 11 Early 2023"]
[White "Zakhartsov, Vladimir"]
[Black "Nguyen, Hong Anh"]
[WhiteFideId "4145097"]
[BlackFideId "12406732"]
[WhiteElo "2497"]
[BlackElo "2054"]
[Result "0-1"]
[Round "01"]
[TimeControl "180+2"]
[Date "2023.04.11"]
[WhiteClock "0:00:06"]
[BlackClock "0:00:09"]

1. e4 {[%clk 0:03:00]}  c5 {[%clk 0:02:58]} 2. Nf3 {[%clk 0:02:59]}  Nc6 {[%clk 0:02:56]} 3. g3 {[%clk 0:02:59]}  g6 {[%clk 0:02:54]} 4. Bg2 {[%clk 0:02:59]}  Bg7 {[%clk 0:02:54]} 5. O-O {[%clk 0:02:59]}  e5 {[%clk 0:02:54]} 6. c3 {[%clk 0:02:49]}  Nge7 {[%clk 0:02:54]} 7. d3 {[%clk 0:02:48]}  d6 {[%clk 0:02:53]} 8. a3 {[%clk 0:02:44]}  a5 {[%clk 0:02:51]} 9. a4 {[%clk 0:02:44]}  O-O {[%clk 0:02:50]} 10. Na3 {[%clk 0:02:44]}  d5 {[%clk 0:02:38]} 11. exd5 {[%clk 0:02:43]}  Nxd5 {[%clk 0:02:38]} 12. Nc4 {[%clk 0:02:41]}  Nb6 {[%clk 0:02:29]} 13. Ne3 {[%clk 0:02:33]}  Be6 {[%clk 0:02:20]} 14. Re1 {[%clk 0:02:33]}  c4 {[%clk 0:02:16]} 15. dxc4 {[%clk 0:02:26]}  Nxc4 {[%clk 0:02:16]} 16. Qxd8 {[%clk 0:02:22]}  Rfxd8 {[%clk 0:02:13]} 17. Ng5 {[%clk 0:02:14]}  Nxe3 {[%clk 0:02:06]} 18. Bxe3 {[%clk 0:02:15]}  Bb3 {[%clk 0:02:05]} 19. Ne4 {[%clk 0:02:15]}  Bf8 {[%clk 0:01:11]} 20. Bb6 {[%clk 0:02:02]}  Rdc8 {[%clk 0:01:07]} 21. Nc5 {[%clk 0:01:13]}  Bxc5 {[%clk 0:00:57]} 22. Bxc5 {[%clk 0:01:14]}  Rd8 {[%clk 0:00:53]} 23. Be3 {[%clk 0:01:04]}  Rd7 {[%clk 0:00:51]} 24. Bf1 {[%clk 0:00:53]}  Rad8 {[%clk 0:00:49]} 25. Bb6 {[%clk 0:00:48]}  Re8 {[%clk 0:00:45]} 26. Bb5 {[%clk 0:00:48]}  Rd2 {[%clk 0:00:45]} 27. Bxa5 {[%clk 0:00:32]}  Rxb2 {[%clk 0:00:42]} 28. Bb6 {[%clk 0:00:32]}  Re6 {[%clk 0:00:38]} 29. Be3 {[%clk 0:00:31]}  Bd5 {[%clk 0:00:35]} 30. Red1 {[%clk 0:00:21]}  Bf3 {[%clk 0:00:34]} 31. Rdb1 {[%clk 0:00:21]}  Rc2 {[%clk 0:00:33]} 32. Rc1 {[%clk 0:00:18]}  Rb2 {[%clk 0:00:33]} 33. Rab1 {[%clk 0:00:19]}  Rxb1 {[%clk 0:00:27]} 34. Rxb1 {[%clk 0:00:20]}  Rd6 {[%clk 0:00:24]} 35. Kf1 {[%clk 0:00:17]}  Nd8 {[%clk 0:00:18]} 36. Ke1 {[%clk 0:00:15]}  Ne6 {[%clk 0:00:18]} 37. Be2 {[%clk 0:00:15]}  Be4 {[%clk 0:00:17]} 38. Rb4 {[%clk 0:00:13]}  Bc6 {[%clk 0:00:16]} 39. a5 {[%clk 0:00:13]}  Nc7 {[%clk 0:00:15]} 40. Rb2 {[%clk 0:00:08]}  Kg7 {[%clk 0:00:15]} 41. c4 {[%clk 0:00:08]}  Ne6 {[%clk 0:00:14]} 42. Bb6 {[%clk 0:00:07]}  e4 {[%clk 0:00:11]} 43. c5 {[%clk 0:00:07]}  Rd5 {[%clk 0:00:11]} 44. Bc4 {[%clk 0:00:07]}  Re5 {[%clk 0:00:11]} 45. a6 {[%clk 0:00:06]}  bxa6 {[%clk 0:00:10]} 46. Bxa6 {[%clk 0:00:07]}  Nxc5 {[%clk 0:00:10]} 47. Rc2 {[%clk 0:00:05]}  Nd3+ {[%clk 0:00:10]} 48. Kd2 {[%clk 0:00:06]}  Ba4 {[%clk 0:00:08]} 49. Ra2 {[%clk 0:00:04]}  Bb3 {[%clk 0:00:01]} 50. Ra3 {[%clk 0:00:04]}  Rd5 {[%clk 0:00:01]} 51. Rxb3 {[%clk 0:00:02]}  Nc5+ {[%clk 0:00:02]} 52. Kc3 {[%clk 0:00:02]}  Nxb3 {[%clk 0:00:02]} 53. Bc4 {[%clk 0:00:01]}  Rd6 {[%clk 0:00:03]} 54. Bc7 {[%clk 0:00:02]}  Rc6 {[%clk 0:00:04]} 55. Be5+ {[%clk 0:00:02]}  f6 {[%clk 0:00:04]} 56. Kxb3 {[%clk 0:00:01]}  fxe5 {[%clk 0:00:04]} 57. Bd5 {[%clk 0:00:01]}  Rf6 {[%clk 0:00:04]} 58. Bxe4 {[%clk 0:00:01]}  Rxf2 {[%clk 0:00:05]} 59. h4 {[%clk 0:00:02]}  Re2 {[%clk 0:00:05]} 60. Bd5 {[%clk 0:00:03]}  Re3+ {[%clk 0:00:05]} 61. Kc4 {[%clk 0:00:04]}  Rxg3 {[%clk 0:00:06]} 62. Kc5 {[%clk 0:00:04]}  Rg4 {[%clk 0:00:06]} 63. Kd6 {[%clk 0:00:04]}  Rxh4 {[%clk 0:00:07]} 64. Kxe5 {[%clk 0:00:04]}  Rh5+ {[%clk 0:00:08]} 65. Ke4 {[%clk 0:00:05]}  Rxd5 {[%clk 0:00:09]} 66. Kxd5 {[%clk 0:00:06]}  g5 {[%clk 0:00:09]} 0-1


[Site "https://www.chess.com"]

[Event "Titled Tuesday Blitz April 11 Early 2023"]
[White "Cervantes Landeiro, Thalia"]
[Black "Kuzubov, Yuriy"]
[WhiteFideId "3520498"]
[BlackFideId "14112906"]
[WhiteElo "2172"]
[BlackElo "2496"]
[Result "0-1"]
[Round "01"]
[TimeControl "180+2"]
[Date "2023.04.11"]
[WhiteClock "0:00:05"]
[BlackClock "0:01:12"]

1. d4 {[%clk 0:03:00]}  Nf6 {[%clk 0:02:59]} 2. c4 {[%clk 0:03:00]}  e6 {[%clk 0:02:59]} 3. Nf3 {[%clk 0:03:00]}  d5 {[%clk 0:02:58]} 4. Nc3 {[%clk 0:03:00]}  Be7 {[%clk 0:02:58]} 5. cxd5 {[%clk 0:02:59]}  exd5 {[%clk 0:02:57]} 6. Bf4 {[%clk 0:02:59]}  c6 {[%clk 0:02:56]} 7. e3 {[%clk 0:02:59]}  Bf5 {[%clk 0:02:54]} 8. h3 {[%clk 0:02:53]}  Nbd7 {[%clk 0:02:41]} 9. g4 {[%clk 0:02:44]}  Bg6 {[%clk 0:02:41]} 10. Bd3 {[%clk 0:02:42]}  Qb6 {[%clk 0:02:29]} 11. Bxg6 {[%clk 0:02:30]}  hxg6 {[%clk 0:02:30]} 12. Qc2 {[%clk 0:02:15]}  Nxg4 {[%clk 0:02:26]} 13. O-O-O {[%clk 0:02:15]}  Nh6 {[%clk 0:02:22]} 14. h4 {[%clk 0:01:52]}  Nf6 {[%clk 0:02:22]} 15. Ne5 {[%clk 0:01:50]}  Nh5 {[%clk 0:02:13]} 16. Nxg6 {[%clk 0:01:43]}  fxg6 {[%clk 0:02:12]} 17. Qxg6+ {[%clk 0:01:43]}  Nf7 {[%clk 0:02:13]} 18. Bg5 {[%clk 0:01:37]}  Qc7 {[%clk 0:02:05]} 19. e4 {[%clk 0:01:28]}  Qd6 {[%clk 0:02:02]} 20. Qf5 {[%clk 0:01:10]}  Bxg5+ {[%clk 0:01:59]} 21. hxg5 {[%clk 0:01:10]}  Qf4+ {[%clk 0:01:59]} 22. Qxf4 {[%clk 0:01:05]}  Nxf4 {[%clk 0:02:00]} 23. exd5 {[%clk 0:00:41]}  Rxh1 {[%clk 0:01:51]} 24. Rxh1 {[%clk 0:00:40]}  Nxd5 {[%clk 0:01:48]} 25. g6 {[%clk 0:00:28]}  Nh6 {[%clk 0:01:46]} 26. Nxd5 {[%clk 0:00:20]}  cxd5 {[%clk 0:01:46]} 27. Rh5 {[%clk 0:00:21]}  O-O-O {[%clk 0:01:43]} 28. Kd2 {[%clk 0:00:21]}  Rd6 {[%clk 0:01:43]} 29. Ke3 {[%clk 0:00:20]}  Kd7 {[%clk 0:01:41]} 30. f3 {[%clk 0:00:19]}  Ke6 {[%clk 0:01:39]} 31. Rg5 {[%clk 0:00:19]}  Kf6 {[%clk 0:01:39]} 32. Rg1 {[%clk 0:00:14]}  Rc6 {[%clk 0:01:39]} 33. Kd3 {[%clk 0:00:14]}  Nf5 {[%clk 0:01:39]} 34. Re1 {[%clk 0:00:10]}  Rc4 {[%clk 0:01:37]} 35. Re8 {[%clk 0:00:09]}  Rxd4+ {[%clk 0:01:37]} 36. Kc3 {[%clk 0:00:10]}  Rf4 {[%clk 0:01:37]} 37. Rb8 {[%clk 0:00:10]}  Rxf3+ {[%clk 0:01:35]} 38. Kb4 {[%clk 0:00:11]}  Re3 {[%clk 0:01:26]} 39. Rxb7 {[%clk 0:00:10]}  Re7 {[%clk 0:01:26]} 40. Rb8 {[%clk 0:00:10]}  d4 {[%clk 0:01:24]} 41. Kc4 {[%clk 0:00:10]}  Kxg6 {[%clk 0:01:22]} 42. b4 {[%clk 0:00:10]}  Rc7+ {[%clk 0:01:19]} 43. Kd3 {[%clk 0:00:09]}  Rc3+ {[%clk 0:01:18]} 44. Kd2 {[%clk 0:00:09]}  Ra3 {[%clk 0:01:17]} 45. Rc8 {[%clk 0:00:06]}  Kg5 {[%clk 0:01:14]} 46. Rc5 {[%clk 0:00:05]}  Kf4 {[%clk 0:01:12]} 0-1


[Site "https://www.chess.com"]

[Event "Titled Tuesday Blitz April 11 Early 2023"]
[White "Gharibyan, Mamikon"]
[Black "Ladan, Nicholas"]
[WhiteFideId "13308300"]
[BlackFideId "30918855"]
[WhiteElo "2445"]
[BlackElo "2167"]
[Result "1-0"]
[Round "01"]
[TimeControl "180+2"]
[Date "2023.04.11"]
[WhiteClock "0:00:27"]
[BlackClock "0:00:02"]

1. d4 {[%clk 0:02:59]}  d5 {[%clk 0:02:59]} 2. c4 {[%clk 0:02:58]}  e6 {[%clk 0:02:59]} 3. Nc3 {[%clk 0:02:57]}  Nf6 {[%clk 0:02:59]} 4. cxd5 {[%clk 0:02:57]}  exd5 {[%clk 0:02:59]} 5. a3 {[%clk 0:02:56]}  h6 {[%clk 0:02:55]} 6. Bf4 {[%clk 0:02:50]}  Bd6 {[%clk 0:02:52]} 7. Bg3 {[%clk 0:02:43]}  O-O {[%clk 0:02:48]} 8. e3 {[%clk 0:02:40]}  Re8 {[%clk 0:02:40]} 9. Nf3 {[%clk 0:02:33]}  Bf5 {[%clk 0:02:30]} 10. Qb3 {[%clk 0:02:30]}  Nc6 {[%clk 0:02:14]} 11. Be2 {[%clk 0:02:24]}  a6 {[%clk 0:02:09]} 12. O-O-O {[%clk 0:02:19]}  Na5 {[%clk 0:01:50]} 13. Qa4 {[%clk 0:02:13]}  Bxg3 {[%clk 0:01:32]} 14. hxg3 {[%clk 0:02:07]}  c6 {[%clk 0:01:33]} 15. Ne5 {[%clk 0:01:55]}  Qb6 {[%clk 0:01:29]} 16. Bd3 {[%clk 0:01:50]}  Ne4 {[%clk 0:01:13]} 17. Nxe4 {[%clk 0:01:39]}  Bxe4 {[%clk 0:01:11]} 18. Bxe4 {[%clk 0:01:32]}  dxe4 {[%clk 0:01:12]} 19. Qb4 {[%clk 0:01:32]}  Qb5 {[%clk 0:01:05]} 20. Kb1 {[%clk 0:01:26]}  Rad8 {[%clk 0:00:57]} 21. g4 {[%clk 0:01:18]}  f6 {[%clk 0:00:45]} 22. Ng6 {[%clk 0:01:12]}  Qxb4 {[%clk 0:00:45]} 23. axb4 {[%clk 0:01:12]}  Nc4 {[%clk 0:00:45]} 24. Rc1 {[%clk 0:01:07]}  Nb6 {[%clk 0:00:39]} 25. Nf4 {[%clk 0:00:59]}  Nd5 {[%clk 0:00:38]} 26. Nxd5 {[%clk 0:00:58]}  Rxd5 {[%clk 0:00:39]} 27. Rc5 {[%clk 0:00:58]}  Kf7 {[%clk 0:00:36]} 28. Ka2 {[%clk 0:00:47]}  Red8 {[%clk 0:00:36]} 29. Kb3 {[%clk 0:00:47]}  Kg6 {[%clk 0:00:35]} 30. Rh5 {[%clk 0:00:44]}  Kf7 {[%clk 0:00:22]} 31. Ka4 {[%clk 0:00:42]}  Rxc5 {[%clk 0:00:19]} 32. bxc5 {[%clk 0:00:36]}  Rd7 {[%clk 0:00:11]} 33. Ka5 {[%clk 0:00:36]}  Kg6 {[%clk 0:00:09]} 34. Kb6 {[%clk 0:00:36]}  Kf7 {[%clk 0:00:07]} 35. Ka7 {[%clk 0:00:33]}  Ke7 {[%clk 0:00:07]} 36. Kb8 {[%clk 0:00:33]}  Kd8 {[%clk 0:00:06]} 37. Rf5 {[%clk 0:00:29]}  Re7 {[%clk 0:00:04]} 38. d5 {[%clk 0:00:28]}  cxd5 {[%clk 0:00:03]} 39. Rxd5+ {[%clk 0:00:28]}  Ke8 {[%clk 0:00:03]} 40. Rd6 {[%clk 0:00:28]}  g6 {[%clk 0:00:02]} 41. Rxf6 {[%clk 0:00:27]} 1-0


[Site "https://www.chess.com"]

[Event "Titled Tuesday Blitz April 11 Early 2023"]
[White "Salinas Herrera, Pablo"]
[Black "Minko, Dmitry"]
[WhiteFideId "3407128"]
[BlackFideId "24188468"]
[WhiteElo "2546"]
[BlackElo "2147"]
[Result "1-0"]
[Round "01"]
[TimeControl "180+2"]
[Date "2023.04.11"]
[WhiteClock "0:00:19"]
[BlackClock "0:00:05"]

1. e4 {[%clk 0:02:47]}  e5 {[%clk 0:02:59]} 2. Nf3 {[%clk 0:02:45]}  Nc6 {[%clk 0:02:59]} 3. Bc4 {[%clk 0:02:41]}  Nf6 {[%clk 0:02:59]} 4. d3 {[%clk 0:02:41]}  h6 {[%clk 0:03:00]} 5. O-O {[%clk 0:02:40]}  g6 {[%clk 0:03:00]} 6. Nc3 {[%clk 0:02:40]}  Bg7 {[%clk 0:03:00]} 7. a4 {[%clk 0:02:39]}  O-O {[%clk 0:02:59]} 8. a5 {[%clk 0:02:37]}  a6 {[%clk 0:03:00]} 9. h3 {[%clk 0:02:34]}  d6 {[%clk 0:02:59]} 10. Re1 {[%clk 0:02:34]}  Be6 {[%clk 0:02:49]} 11. Be3 {[%clk 0:02:22]}  d5 {[%clk 0:02:22]} 12. exd5 {[%clk 0:02:22]}  Nxd5 {[%clk 0:02:22]} 13. Bd2 {[%clk 0:01:59]}  Nxc3 {[%clk 0:02:17]} 14. Bxc3 {[%clk 0:01:59]}  Bxc4 {[%clk 0:02:18]} 15. dxc4 {[%clk 0:02:00]}  Re8 {[%clk 0:02:11]} 16. Qd5 {[%clk 0:01:54]}  Qxd5 {[%clk 0:01:35]} 17. cxd5 {[%clk 0:01:54]}  Nd4 {[%clk 0:01:35]} 18. Bxd4 {[%clk 0:01:33]}  exd4 {[%clk 0:01:35]} 19. Rxe8+ {[%clk 0:01:07]}  Rxe8 {[%clk 0:01:35]} 20. Ra4 {[%clk 0:01:07]}  Rd8 {[%clk 0:01:21]} 21. Rb4 {[%clk 0:00:57]}  Rxd5 {[%clk 0:01:20]} 22. Rxb7 {[%clk 0:00:57]}  Rxa5 {[%clk 0:01:14]} 23. Rxc7 {[%clk 0:00:57]}  d3 {[%clk 0:01:08]} 24. cxd3 {[%clk 0:00:35]}  Bxb2 {[%clk 0:01:07]} 25. d4 {[%clk 0:00:32]}  Ra1+ {[%clk 0:00:45]} 26. Kh2 {[%clk 0:00:32]}  Rd1 {[%clk 0:00:46]} 27. Rc4 {[%clk 0:00:30]}  a5 {[%clk 0:00:31]} 28. g4 {[%clk 0:00:30]}  Ra1 {[%clk 0:00:22]} 29. Kg2 {[%clk 0:00:26]}  a4 {[%clk 0:00:23]} 30. Ne5 {[%clk 0:00:21]}  a3 {[%clk 0:00:21]} 31. Rc8+ {[%clk 0:00:19]}  Kg7 {[%clk 0:00:20]} 32. Rc7 {[%clk 0:00:19]}  a2 {[%clk 0:00:18]} 33. Rxf7+ {[%clk 0:00:18]}  Kg8 {[%clk 0:00:18]} 34. Ra7 {[%clk 0:00:18]}  Bxd4 {[%clk 0:00:16]} 35. Ra8+ {[%clk 0:00:18]}  Kg7 {[%clk 0:00:17]} 36. Nc6 {[%clk 0:00:17]}  Rc1 {[%clk 0:00:12]} 37. Nxd4 {[%clk 0:00:17]}  a1=Q {[%clk 0:00:12]} 38. Ne6+ {[%clk 0:00:17]}  Kf6 {[%clk 0:00:11]} 39. Rxa1 {[%clk 0:00:18]}  Rxa1 {[%clk 0:00:11]} 40. Nf4 {[%clk 0:00:19]}  Ra4 {[%clk 0:00:10]} 41. Nd5+ {[%clk 0:00:19]}  Ke5 {[%clk 0:00:10]} 42. Ne3 {[%clk 0:00:20]}  Ra2 {[%clk 0:00:09]} 43. Kf3 {[%clk 0:00:20]}  g5 {[%clk 0:00:07]} 44. Kg2 {[%clk 0:00:19]}  Kf4 {[%clk 0:00:04]} 45. Nd5+ {[%clk 0:00:19]}  Ke4 {[%clk 0:00:05]} 46. Nc3+ {[%clk 0:00:19]} 1-0


[Site "https://www.chess.com"]

[Event "Titled Tuesday Blitz April 11 Early 2023"]
[White "Reprintsev, Alexander"]
[Black "Kukhmazov, Arsen"]
[WhiteFideId "14100541"]
[BlackFideId "24108260"]
[WhiteElo "2211"]
[BlackElo "2396"]
[Result "0-1"]
[Round "01"]
[TimeControl "180+2"]
[Date "2023.04.11"]
[WhiteClock "0:01:29"]
[BlackClock "0:00:46"]

1. e4 {[%clk 0:02:51]}  e5 {[%clk 0:02:58]} 2. Nf3 {[%clk 0:02:50]}  Nc6 {[%clk 0:02:56]} 3. Bc4 {[%clk 0:02:50]}  Bc5 {[%clk 0:02:53]} 4. b4 {[%clk 0:02:49]}  Bxb4 {[%clk 0:02:51]} 5. c3 {[%clk 0:02:49]}  Ba5 {[%clk 0:02:51]} 6. d4 {[%clk 0:02:44]}  d6 {[%clk 0:02:51]} 7. Qb3 {[%clk 0:02:41]}  Qd7 {[%clk 0:02:47]} 8. O-O {[%clk 0:02:36]}  Bb6 {[%clk 0:02:47]} 9. Nbd2 {[%clk 0:02:35]}  Na5 {[%clk 0:02:42]} 10. Qc2 {[%clk 0:02:35]}  Nxc4 {[%clk 0:02:41]} 11. Nxc4 {[%clk 0:02:35]}  f6 {[%clk 0:02:42]} 12. a4 {[%clk 0:02:34]}  Qf7 {[%clk 0:02:40]} 13. d5 {[%clk 0:02:27]}  Bc5 {[%clk 0:02:34]} 14. Be3 {[%clk 0:02:24]}  Bxe3 {[%clk 0:02:33]} 15. fxe3 {[%clk 0:02:24]}  Nh6 {[%clk 0:02:27]} 16. a5 {[%clk 0:02:23]}  O-O {[%clk 0:02:26]} 17. h3 {[%clk 0:02:23]}  Bd7 {[%clk 0:02:21]} 18. Nfd2 {[%clk 0:02:18]}  b6 {[%clk 0:02:17]} 19. Rf2 {[%clk 0:02:17]}  Qg6 {[%clk 0:02:00]} 20. g4 {[%clk 0:02:14]}  f5 {[%clk 0:01:54]} 21. exf5 {[%clk 0:02:13]}  Bxf5 {[%clk 0:01:55]} 22. e4 {[%clk 0:02:10]}  Bd7 {[%clk 0:01:48]} 23. Raf1 {[%clk 0:02:03]}  Rxf2 {[%clk 0:01:48]} 24. Rxf2 {[%clk 0:02:03]}  Nf7 {[%clk 0:01:41]} 25. Ne3 {[%clk 0:02:01]}  h5 {[%clk 0:01:34]} 26. Rg2 {[%clk 0:01:59]}  Ng5 {[%clk 0:01:22]} 27. Kh2 {[%clk 0:01:54]}  hxg4 {[%clk 0:01:06]} 28. Nxg4 {[%clk 0:01:51]}  Qh5 {[%clk 0:01:05]} 29. Nf2 {[%clk 0:01:46]}  Rf8 {[%clk 0:01:04]} 30. Qd3 {[%clk 0:01:44]}  Bxh3 {[%clk 0:00:44]} 31. Nxh3 {[%clk 0:01:41]}  Rf3 {[%clk 0:00:44]} 32. Nxf3 {[%clk 0:01:31]}  Qxh3+ {[%clk 0:00:45]} 33. Kg1 {[%clk 0:01:31]}  Nxf3+ {[%clk 0:00:45]} 34. Kf2 {[%clk 0:01:30]}  Qxg2+ {[%clk 0:00:46]} 35. Kxg2 {[%clk 0:01:29]}  Ne1+ {[%clk 0:00:46]} 0-1


[Site "https://www.chess.com"]